fUSD/lending_fUSD_20251211
["ID","MTS","AMOUNT","RATE_DAILY","PERIOD"]
[398168242,1765414240028,-364.837599,0.0002424,2]
[398168243,1765414240317,-0.00142997,0.0002424,2]
[398168244,1765414240329,-5011.765,0.0002424,2]
[398168245,1765414240348,-792.94577513,0.0002424,2]
[398168246,1765414240360,-3588.24204253,0.0002424,2]
[398168247,1765414240372,-15200.52799927,0.0002424,2]
[398168248,1765414240381,-223.87,0.00024402,2]
[398168249,1765414240394,-1016.0,0.00024538,2]
[398168250,1765414240404,-5000.0,0.00024666,2]
[398168251,1765414240413,-743.46565702,0.00024699,2]
[398168252,1765414240429,-310.59434298,0.00024699,2]
[398168253,1765414240439,-200.0,0.000247,2]
[398168254,1765414240448,-500.0,0.000247,2]
[398168255,1765414240457,-200.0,0.000247,2]
[398168256,1765414240466,-1054.06,0.00024973,2]
[398168257,1765414240475,-1054.06,0.00025247,2]
[398168258,1765414240484,-200.0,0.00025248,2]
[398168259,1765414240494,-500.0,0.00025248,2]
[398168260,1765414240504,-200.0,0.00025248,2]
[398168261,1765414240518,-1054.06,0.00025521,2]
[398168262,1765414240528,-129.6541387,0.00025539,2]
[398168263,1765414240540,-37.0058613,0.00025539,2]
[398168264,1765414240549,-5204.73,0.00025596,2]
[398168265,1765414240561,-506.2856355,0.00025623,2]
[398168266,1765414240572,-644.7143645,0.00025623,2]
[398168267,1765414240582,-695.9496935,0.00025631,2]
[398168268,1765414240591,-223.87,0.00025686,2]
[398168269,1765414240601,-4698.14804396,0.00025698,2]
[398168270,1765414240610,-207.4,0.00025795,2]
[398168271,1765414240620,-200.0,0.00025796,2]
[398168272,1765414240630,-500.0,0.00025796,2]
[398168273,1765414240640,-200.0,0.00025796,2]
[398168274,1765414240650,-255.60164246,0.00025798,2]
[398168275,1765414240659,-2260.1255021,0.00025914,2]
[398168276,1765414240668,-1240.5614751,0.00025978,2]
[398168277,1765414240678,-1054.15017063,0.00026069,2]
[398168278,1765414240688,-200.0,0.00026344,2]
[398168279,1765414240697,-500.0,0.00026344,2]
[398168280,1765414240707,-200.0,0.00026344,2]
[398168281,1765414240717,-39421.4487685,0.00026577,3]
[398168282,1765414240726,-90932.4577216,0.00026587,2]
[398168283,1765414240736,-166.66,0.00026871,2]
[398168284,1765414240746,-200.0,0.00026892,2]
[398168285,1765414240755,-500.0,0.00026892,2]
[398168286,1765414240764,-200.0,0.00026892,2]
[398168287,1765414240774,-223.87,0.0002697,2]
[398168288,1765414240783,-2815.81776918,0.00027186,3]
[398168289,1765414240793,-236.44,0.000274,2]
[398168290,1765414240803,-236.44,0.000274,2]
[398168291,1765414240813,-200.0,0.0002744,2]
[398168292,1765414240822,-500.0,0.0002744,2]
[398168293,1765414240832,-280.73810332,0.0002744,2]
[398168294,1765414240841,-2815.81776918,0.00027462,3]
[398168295,1765414240851,-4698.14804389,0.00027472,2]
[398168296,1765414240860,-200.0,0.00027988,2]
[398168297,1765414240869,-500.0,0.00027988,2]
[398168298,1765414240882,-2815.81776918,0.00028193,3]
[398168299,1765414240891,-155.3,0.00028203,2]
[398168300,1765414240901,-166.66,0.00028203,2]
[398168301,1765414240910,-223.87,0.00028255,2]
[398168302,1765414240919,-215.0738,0.00028534,2]
[398168303,1765414240929,-200.0,0.00028536,2]
[398168304,1765414240938,-627.04271784,0.00028536,2]
[398168305,1765414240948,-2486.1380523,0.00028631,2]
[398168306,1765414240957,-2815.81776918,0.00028891,3]
[398168307,1765414240967,-8447.45330754,0.000289,3]
[398168308,1765414240976,-236.44,0.000289,2]
[398168309,1765414240985,-8447.45330754,0.00028901,3]
[398168310,1765414240994,-500.0,0.0002891,60]
[398168311,1765414241004,-500.0,0.0002891,2]
[398168312,1765414241014,-500.0,0.0002891,2]
[398168313,1765414241023,-500.0,0.0002891,2]
[398168314,1765414241034,-500.0,0.0002891,2]
[398168315,1765414241043,-500.0,0.0002891,2]
[398168316,1765414241054,-500.0,0.0002891,2]
[398168317,1765414241063,-500.0,0.0002891,2]
[398168318,1765414241072,-500.0,0.0002891,2]
[398168319,1765414241083,-500.0,0.0002891,2]
[398168320,1765414241093,-500.0,0.0002891,2]
[398168321,1765414241102,-500.0,0.0002891,2]
[398168322,1765414241112,-500.0,0.0002891,2]
[398168323,1765414241121,-500.0,0.0002891,2]
[398168324,1765414241131,-500.0,0.0002891,2]
[398168325,1765414241140,-500.0,0.0002891,2]
[398168326,1765414241149,-500.0,0.0002891,2]
[398168327,1765414241158,-500.0,0.0002891,2]
[398168328,1765414241173,-500.0,0.0002891,2]
[398168329,1765414241189,-500.0,0.0002891,2]
[398168330,1765414241198,-500.0,0.0002891,2]
[398168331,1765414241207,-241.54551163,0.0002891,2]
[398168332,1765414241217,-500.0,0.0002891,2]
[398168333,1765414241226,-500.0,0.0002891,2]
[398168334,1765414241235,-500.0,0.0002891,2]
[398168335,1765414241244,-500.0,0.0002891,2]
[398168336,1765414241253,-500.0,0.0002891,2]
[398168337,1765414241263,-500.0,0.0002891,2]
[398168338,1765414241272,-500.0,0.0002891,2]
[398168339,1765414241281,-500.0,0.0002891,2]
[398168340,1765414241293,-500.0,0.0002891,2]
[398168341,1765414241302,-500.0,0.0002891,2]
[398168342,1765414241314,-500.0,0.0002891,2]
[398168343,1765414241339,-500.0,0.0002891,2]
[398168344,1765414241359,-500.0,0.0002891,2]
[398168345,1765414241369,-500.0,0.0002891,2]
[398168346,1765414241380,-500.0,0.0002891,2]
[398168347,1765414241391,-500.0,0.0002891,2]
[398168348,1765414241401,-500.0,0.0002891,2]
[398168349,1765414241411,-500.0,0.0002891,2]
[398168350,1765414241420,-500.0,0.0002891,2]
[398168351,1765414241430,-500.0,0.0002891,2]
[398168352,1765414241439,-500.0,0.0002891,2]
[398168353,1765414241449,-500.0,0.0002891,2]
[398168354,1765414241459,-500.0,0.0002891,2]
[398168355,1765414241468,-500.0,0.0002891,2]
[398168356,1765414241477,-500.0,0.0002891,2]
[398168357,1765414241486,-500.0,0.0002891,2]
[398168358,1765414241496,-500.0,0.0002891,2]
[398168359,1765414241506,-500.0,0.0002891,2]
[398168360,1765414241516,-168.37076007,0.0002891,2]
[398168361,1765414241527,-500.0,0.0002891,2]
[398168362,1765414241537,-500.0,0.0002891,2]
[398168363,1765414241546,-500.0,0.0002891,2]
[398168364,1765414241558,-500.0,0.0002891,2]
[398168365,1765414241568,-500.0,0.0002891,2]
[398168366,1765414241579,-500.0,0.0002891,2]
[398168367,1765414241589,-500.0,0.0002891,2]
[398168368,1765414241599,-500.0,0.0002891,2]
[398168369,1765414241610,-500.0,0.0002891,2]
[398168370,1765414241620,-500.0,0.0002891,2]
[398168371,1765414241630,-500.0,0.0002891,2]
[398168372,1765414241640,-538.901,0.0002891,2]
[398168373,1765414241650,-1240.5614751,0.00029192,2]
[398168374,1765414241807,-2815.81776918,0.00029235,3]
[398168375,1765414241868,-600.27,0.00029243,2]
[398168376,1765414241880,-4698.14804389,0.00029245,2]
[398168377,1765414241890,-223.87,0.00029539,2]
[398168378,1765414241900,-236.44,0.00030085,2]
[398168379,1765414241910,-42237.2665377,0.00030094,3]
[398168380,1765414241920,-9469.16500563,0.00030094,3]
[398168381,1765414241931,-236.44,0.00030094,2]
[398168382,1765414241941,-90932.4577216,0.00030104,2]
[398168383,1765414241951,-523.16052184,0.00030159,2]
[398168384,1765414241960,-600.27,0.00030339,2]
[398168385,1765414241970,-748.11881015,0.00030709,2]
[398168386,1765414241979,-223.87,0.00030823,2]
[398168387,1765414241989,-4698.14804389,0.00031019,2]
[398168388,1765414241999,-2712.1506025,0.0003111,2]
[398168389,1765414242008,-223.0315306,0.00031273,2]
[398168390,1765414242020,-152.56104173,0.00031393,17]
[398168391,1765414242031,-600.27,0.00031436,2]
[398168392,1765414242043,-31563.8833521,0.00031483,3]
[398168393,1765414242052,-9000.0,0.00031493,2]
[398168394,1765414242063,-9000.0,0.00031493,2]
[398168395,1765414242072,-9000.0,0.00031493,2]
[398168396,1765414242083,-9000.0,0.00031493,2]
[398168397,1765414242092,-9000.0,0.00031493,2]
[398168398,1765414242102,-9000.0,0.00031493,2]
[398168399,1765414242111,-9000.0,0.00031493,2]
[398168400,1765414242121,-9000.0,0.00031493,2]
[398168401,1765414242131,-9000.0,0.00031493,2]
[398168402,1765414242140,-500.0,0.00031493,2]
[398168403,1765414242150,-250.0,0.00031493,2]
[398168404,1765414242159,-500.0,0.00031493,2]
[398168405,1765414242168,-151.0,0.00031493,2]
[398168406,1765414242178,-9000.0,0.00031493,2]
[398168407,1765414242187,-500.0,0.00031493,2]
[398168408,1765414242196,-250.0,0.00031493,2]
[398168409,1765414242207,-500.0,0.00031493,2]
[398168410,1765414242221,-500.0,0.00031493,2]
[398168411,1765414242232,-250.0,0.00031493,2]
[398168412,1765414242242,-500.0,0.00031493,2]
[398168413,1765414242252,-500.0,0.00031493,2]
[398168414,1765414242262,-250.0,0.00031493,2]
[398168415,1765414242271,-500.0,0.00031493,2]
[398168416,1765414242281,-3036.1429803,0.00031493,2]
[398168417,1765414242290,-500.0,0.00031493,2]
[398168418,1765414242300,-250.0,0.00031493,2]
[398168419,1765414242314,-500.0,0.00031493,2]
[398168420,1765414242324,-300.0,0.00031493,2]
[398168421,1765414242335,-500.0,0.00031493,2]
[398168422,1765414242345,-250.0,0.00031493,2]
[398168423,1765414242356,-500.0,0.00031493,2]
[398168424,1765414242367,-500.0,0.00031493,2]
[398168425,1765414242377,-607.04284567,0.00031493,2]
[398168426,1765414242387,-250.0,0.00031493,2]
[398168427,1765414242399,-500.0,0.00031493,2]
[398168428,1765414242409,-500.0,0.00031493,2]
[398168429,1765414242420,-151.0,0.00031493,2]
[398168430,1765414242430,-250.0,0.00031493,2]
[398168431,1765414242440,-500.0,0.00031493,2]
[398168432,1765414242451,-500.0,0.00031493,2]
[398168433,1765414242460,-500.0,0.00031493,2]
[398168434,1765414242470,-500.0,0.00031493,2]
[398168435,1765414242480,-500.0,0.00031493,2]
[398168436,1765414242489,-500.0,0.00031493,2]
[398168437,1765414242499,-500.0,0.00031493,2]
[398168438,1765414242511,-500.0,0.00031493,2]
[398168439,1765414242521,-578.20924308,0.00031493,2]
[398168440,1765414242531,-500.0,0.00031493,2]
[398168441,1765414242540,-500.0,0.00031493,2]
[398168442,1765414242551,-500.0,0.00031493,2]
[398168443,1765414242562,-500.0,0.00031493,2]
[398168445,1765414242572,-250.0,0.00031493,2]
[398168447,1765414242581,-1000.0,0.00031493,2]
[398168448,1765414242591,-250.0,0.00031493,2]
[398168449,1765414242604,-1000.0,0.00031493,2]
[398168450,1765414242614,-250.0,0.00031493,2]
[398168451,1765414242624,-1000.0,0.00031493,2]
[398168453,1765414242633,-250.0,0.00031493,2]
[398168455,1765414242643,-1000.0,0.00031493,2]
[398168457,1765414242653,-500.0,0.00031493,2]
[398168459,1765414242663,-1000.0,0.00031493,2]
[398168460,1765414242673,-500.0,0.00031493,2]
[398168461,1765414242683,-1000.0,0.00031493,2]
[398168462,1765414242692,-500.0,0.00031493,2]
[398168463,1765414242702,-1000.0,0.00031493,2]
[398168464,1765414242712,-500.0,0.00031493,2]
[398168465,1765414242721,-500.0,0.00031493,2]
[398168466,1765414242732,-1000.0,0.00031493,2]
[398168467,1765414242741,-302.0,0.00031493,2]
[398168469,1765414242752,-567.0,0.00031493,2]
[398168471,1765414242762,-500.0,0.00031493,2]
[398168473,1765414242772,-500.0,0.00031493,2]
[398168475,1765414242781,-500.0,0.00031493,2]
[398168476,1765414242790,-500.0,0.00031493,2]
[398168478,1765414242800,-544.08822076,0.00031493,2]
[398168480,1765414242812,-151.0,0.00031493,2]
[398168482,1765414242822,-200.0,0.00031493,2]
[398168484,1765414242832,-250.0,0.00031493,2]
[398168486,1765414242841,-207.4,0.00031493,2]
[398168488,1765414242850,-250.0,0.00031493,2]
[398168490,1765414242859,-215.0738,0.00031493,2]
[398168491,1765414242878,-250.0,0.00031493,2]
[398168493,1765414242887,-223.0315306,0.00031493,2]
[398168495,1765414242896,-250.0,0.00031493,2]
[398168497,1765414242905,-1000.0,0.00031493,2]
[398168498,1765414242914,-160.77265049,0.00031493,2]
[398168499,1765414242923,-250.0,0.00031493,2]
[398168500,1765414242933,-1000.0,0.00031493,2]
[398168501,1765414242942,-1000.0,0.00031493,2]
[398168502,1765414242951,-250.0,0.00031493,2]
[398168503,1765414242960,-1000.0,0.00031493,2]
[398168504,1765414242970,-250.0,0.00031493,2]
[398168505,1765414242983,-1000.0,0.00031493,2]
[398168506,1765414242992,-1000.0,0.00031493,2]
[398168507,1765414243002,-1000.0,0.00031493,2]
[398168508,1765414243011,-257.49158586,0.00031493,2]
[398168509,1765414243021,-1000.0,0.00031493,2]
[398168510,1765414243030,-1000.0,0.00031493,2]
[398168511,1765414243039,-574.12855637,0.00031493,2]
[398168513,1765414243049,-3156.38833521,0.00031538,3]
[398168515,1765414243059,-9000.0,0.00031548,2]
[398168517,1765414243069,-567.0,0.00031548,2]
[398168519,1765414243078,-9000.0,0.00031603,2]
[398168521,1765414243087,-567.0,0.00031603,2]
[398168523,1765414243097,-3156.38833521,0.00031648,3]
[398168524,1765414243107,-567.0,0.00031658,2]
[398168525,1765414243117,-567.0,0.00031713,2]
[398168526,1765414243127,-567.0,0.00031768,2]
[398168527,1765414243136,-567.0,0.00031823,2]
[398168528,1765414243145,-567.0,0.00031878,2]
[398168529,1765414243154,-567.0,0.00031933,2]
[398168530,1765414243163,-567.0,0.00031988,2]
[398168531,1765414243175,-151.0,0.00032041,2]
[398168532,1765414243184,-153.01637236,0.00032041,2]
[398168533,1765414243194,-595.37131296,0.00032041,2]
[398168534,1765414243203,-567.0,0.00032043,2]
[398168535,1765414243213,-223.87,0.00032107,2]
[398168536,1765414243223,-615.1991696,0.00032273,3]
[398168537,1765414243232,-600.27,0.00032532,2]
[398168538,1765414243242,-151.0,0.00032589,2]
[398168539,1765414243251,-617.40005154,0.00032589,2]
[398168540,1765414243260,-4698.14804389,0.00032792,2]
[398168541,1765414243270,-311.1,0.00032862,2]
[398168542,1765414243279,-500.0,0.00032877,7]
[398168543,1765414243288,-259.56133448,0.00032877,7]
[398168544,1765414243297,-500.0,0.00032877,7]
[398168545,1765414243307,-500.0,0.00032877,7]
[398168546,1765414243318,-500.0,0.00032877,7]
[398168547,1765414243328,-500.0,0.00032877,7]
[398168548,1765414243337,-500.0,0.00032877,7]
[398168549,1765414243346,-152.56104171,0.00033105,20]
[398168550,1765414243358,-151.0,0.00033137,2]
[398168551,1765414243367,-640.24385345,0.00033137,2]
[398168552,1765414243376,-3156.38833521,0.00033244,3]
[398168553,1765414243385,-9718.89,0.00033254,2]
[398168554,1765414243395,-500.0,0.00033391,60]
[398168555,1765414243404,-223.87,0.00033392,2]
[398168556,1765414243416,-600.27,0.00033629,2]
[398168557,1765414243427,-663.93287602,0.00033685,2]
[398168558,1765414243436,-214.38667592,0.00033951,2]
[398168559,1765414243445,-231.28369723,0.00034012,2]
[398168560,1765414243454,-3156.38833521,0.00034231,3]
[398168561,1765414243463,-322.6107,0.00034231,2]
[398168562,1765414243472,-599.60298507,0.00034232,2]
[398168563,1765414243483,-688.49839244,0.00034233,2]
[398168564,1765414243492,-2625.346,0.00034241,38]
[398168565,1765414243501,-178.049,0.00034241,38]
[398168566,1765414243510,-4698.14804389,0.00034566,2]
[398168567,1765414243519,-223.87,0.00034676,2]
[398168568,1765414243530,-204.03,0.00034741,14]
[398168569,1765414243539,-713.97283296,0.00034781,2]
[398168570,1765414243548,-228.83124029,0.00034794,2]
[398168571,1765414243558,-1000.0,0.000348,2]
[398168572,1765414243567,-152.56104171,0.00034816,22]
[398168573,1765414243577,-1600.0,0.00035184,120]
[398168574,1765414243587,-168.0,0.00035195,2]
[398168575,1765414243596,-740.38982778,0.00035329,2]
[398168576,1765414243607,-155.3,0.00035455,2]
[398168577,1765414243616,-168.0,0.00035534,2]
[398168578,1765414243626,-359.76179104,0.000356,2]
[398168579,1765414243635,-500.0,0.00035616,2]
[398168580,1765414243645,-500.0,0.00035616,2]
[398168581,1765414243655,-500.0,0.00035616,2]
[398168582,1765414243664,-767.7842514,0.00035877,2]
[398168583,1765414243674,-199.0,0.0003589,7]
[398168584,1765414243683,-3156.38833521,0.0003599,3]
[398168585,1765414243693,-5321.0,0.00036,30]
[398168586,1765414243702,-500.0,0.00036235,30]
[398168587,1765414243711,-168.0,0.00036267,2]
[398168588,1765414243720,-1371.0,0.0003627,2]
[398168589,1765414243730,-4698.14804389,0.00036339,2]
[398168590,1765414243739,-218.22382124,0.00036425,2]
[398168591,1765414243749,-199.0,0.00036438,8]
[398168592,1765414243758,-152.56104171,0.00036528,25]
[398168593,1765414243768,-239.84119403,0.00036751,2]
[398168594,1765414243778,-3156.38833521,0.0003693,4]
[398168595,1765414243787,-1371.0,0.0003694,2]
[398168596,1765414243797,-150.0,0.00036962,7]
[398168597,1765414243807,-150.13424327,0.00036962,7]
[398168598,1765414243815,-150.0,0.00036962,7]
[398168599,1765414243825,-150.0,0.00036962,7]
[398168600,1765414243834,-150.0,0.00036962,7]
[398168601,1765414243843,-150.0,0.00036962,7]
[398168602,1765414243852,-150.0,0.00036962,7]
[398168603,1765414243861,-150.0,0.00036962,7]
[398168604,1765414243871,-150.0,0.00036962,7]
[398168605,1765414243880,-150.0,0.00036962,7]
[398168606,1765414243890,-150.0,0.00036962,7]
[398168607,1765414243899,-150.0886242,0.00036962,7]
[398168608,1765414243909,-150.0,0.00036962,7]
[398168609,1765414243918,-150.0,0.00036962,7]
[398168610,1765414243927,-150.0,0.00036962,7]
[398168611,1765414243936,-1371.0,0.00037008,7]
[398168612,1765414243945,-150.0,0.00037047,7]
[398168613,1765414243954,-150.0,0.00037051,7]
[398168614,1765414243963,-150.0,0.00037114,7]
[398168615,1765414243973,-150.0,0.00037133,7]
[398168616,1765414243982,-150.0,0.0003714,7]
[398168617,1765414243991,-150.0,0.00037148,7]
[398168618,1765414244000,-150.0,0.00037178,7]
[398168619,1765414244010,-150.0,0.00037218,7]
[398168620,1765414244019,-150.0,0.00037229,7]
[398168621,1765414244029,-150.0,0.00037266,7]
[398168622,1765414244038,-150.0,0.00037304,7]
[398168623,1765414244048,-150.0,0.00037304,7]
[398168624,1765414244059,-150.0,0.00037319,7]
[398168625,1765414244069,-150.0,0.00037335,7]
[398168626,1765414244079,-150.0,0.00037389,7]
[398168627,1765414244090,-150.0,0.00037394,7]
[398168628,1765414244100,-150.0,0.00037408,7]
[398168629,1765414244109,-150.0,0.00037418,7]
[398168630,1765414244119,-150.0,0.00037475,7]
[398168631,1765414244128,-150.0,0.00037497,7]
[398168632,1765414244138,-150.0,0.00037522,7]
[398168633,1765414244147,-150.0,0.00037561,7]
[398168634,1765414244156,-150.0,0.0003757,7]
[398168635,1765414244165,-150.0,0.00037587,7]
[398168636,1765414244174,-150.0,0.0003761,7]
[398168637,1765414244184,-150.0,0.00037646,7]
[398168638,1765414244193,-150.0,0.00037646,7]
[398168639,1765414244203,-150.0,0.00037646,7]
[398168640,1765414244212,-150.0,0.00037646,7]
[398168641,1765414244221,-150.0,0.00037676,7]
[398168642,1765414244231,-1371.0,0.00037676,7]
[398168643,1765414244240,-150.0,0.00037708,7]
[398168644,1765414244249,-150.0,0.00037722,7]
[398168645,1765414244259,-150.0,0.00037732,7]
[398168646,1765414244268,-150.0,0.00037765,7]
[398168647,1765414244277,-150.0,0.00037783,7]
[398168648,1765414244286,-150.0,0.00037817,7]
[398168649,1765414244295,-150.0,0.00037826,7]
[398168650,1765414244306,-150.0,0.00037854,7]
[398168651,1765414244321,-150.0,0.00037874,7]
[398168652,1765414244331,-150.0,0.00037895,7]
[398168653,1765414244341,-150.0,0.00037903,7]
[398168654,1765414244351,-150.0,0.00037944,7]
[398168655,1765414244360,-150.0,0.00037988,7]
[398168656,1765414244369,-150.0,0.00037988,7]
[398168657,1765414244378,-150.0,0.00038026,7]
[398168658,1765414244389,-150.0,0.00038033,7]
[398168659,1765414244398,-150.0,0.00038042,7]
[398168660,1765414244408,-156.7335532,0.00038044,7]
[398168661,1765414244419,-150.0,0.00038074,7]
[398168662,1765414244428,-150.0,0.00038082,7]
[398168663,1765414244437,-3156.38833521,0.00038103,4]
[398168664,1765414244447,-4698.14804389,0.00038113,2]
[398168665,1765414244456,-150.0,0.00038122,7]
[398168666,1765414244465,-150.0,0.00038159,7]
[398168667,1765414244474,-150.0,0.00038178,7]
[398168668,1765414244483,-150.0,0.00038212,7]
[398168669,1765414244492,-152.56104171,0.0003824,27]
[398168670,1765414244501,-150.0,0.00038245,7]
[398168671,1765414244511,-150.0,0.00038259,7]
[398168672,1765414244520,-150.0,0.00038268,7]
[398168673,1765414244529,-150.0,0.00038301,7]
[398168674,1765414244539,-150.0,0.00038331,7]
[398168675,1765414244548,-150.0,0.00038331,7]
[398168676,1765414244559,-150.0,0.00038331,7]
[398168677,1765414244569,-150.0,0.00038331,7]
[398168678,1765414244579,-150.0,0.00038331,7]
[398168679,1765414244588,-250.0,0.00038356,30]
[398168680,1765414244598,-150.0,0.0003839,7]
[398168681,1765414244607,-150.0,0.00038416,7]
[398168682,1765414244617,-150.0,0.00038455,7]
[398168683,1765414244627,-150.0,0.00038475,7]
[398168684,1765414244636,-385.89601665,0.00038475,2]
[398168685,1765414244645,-150.0,0.00038479,7]
[398168686,1765414244655,-150.0,0.00038483,7]
[398168687,1765414244664,-1000.0,0.000385,2]
[398168688,1765414244675,-150.0,0.00038502,7]
[398168689,1765414244684,-150.0,0.00038569,7]
[398168690,1765414244694,-150.0,0.00038587,7]
[398168691,1765414244703,-150.0,0.00038604,7]
[398168692,1765414244713,-150.0,0.00038635,7]
[398168693,1765414244722,-150.0,0.00038642,7]
[398168694,1765414244732,-150.0,0.00038658,7]
[398168695,1765414244741,-150.0,0.00038673,7]
[398168696,1765414244751,-150.0,0.00038673,7]
[398168697,1765414244760,-150.0,0.00038691,7]
[398168698,1765414244770,-150.0,0.00038747,7]
[398168699,1765414244779,-150.0,0.00038758,7]
[398168700,1765414244789,-150.0,0.00038787,7]
[398168701,1765414244798,-1371.0,0.00038825,2]
[398168702,1765414244808,-150.0,0.00038828,7]
[398168703,1765414244817,-150.0,0.00038837,7]
[398168704,1765414244827,-150.0,0.00038844,7]
[398168705,1765414244836,-150.0,0.00038907,7]
[398168706,1765414244845,-150.0,0.00038926,7]
[398168707,1765414244994,-150.0,0.0003893,7]
[398168708,1765414245003,-150.0,0.00038939,7]
[398168709,1765414245013,-9469.16500563,0.00038946,4]
[398168710,1765414245022,-41133.71109637,0.00038994,5]
[398168711,1765414245032,-3156.38833521,0.00039005,4]
[398168712,1765414245041,-1358.54435731,0.00039013,5]
[398168713,1765414245050,-150.0,0.00039015,7]
[398168714,1765414245060,-150.0,0.00039015,7]
[398168715,1765414245068,-150.0,0.00039015,7]
[398168716,1765414245077,-150.0,0.00039015,7]
[398168717,1765414245086,-150.0,0.00039015,7]
[398168718,1765414245095,-150.0,0.00039015,7]
[398168719,1765414245104,-150.0,0.00039091,7]
[398168720,1765414245114,-150.0,0.00039101,7]
[398168721,1765414245123,-150.0,0.00039104,7]
[398168722,1765414245131,-150.0,0.00039123,7]
[398168723,1765414245142,-1371.0,0.00039157,120]
[398168724,1765414245150,-150.0,0.00039186,7]
[398168725,1765414245159,-150.0,0.00039194,7]
[398168726,1765414245168,-150.0,0.00039202,7]
[398168727,1765414245177,-150.0,0.00039243,7]
[398168728,1765414245186,-150.0,0.00039272,7]
[398168729,1765414245195,-150.0,0.00039283,7]
[398168730,1765414245204,-150.0,0.00039339,7]
[398168731,1765414245215,-150.0,0.00039357,7]
[398168732,1765414245224,-150.0,0.00039357,7]
[398168733,1765414245234,-150.0,0.00039372,7]
[398168734,1765414245243,-150.0,0.00039388,7]
[398168735,1765414245252,-150.0,0.00039395,7]
[398168736,1765414245261,-150.0,0.00039426,7]
[398168737,1765414245270,-150.0,0.00039443,7]
[398168738,1765414245279,-150.0,0.00039461,7]
[398168739,1765414245288,-248.71531821,0.0003949,2]
[398168740,1765414245296,-150.0,0.00039528,7]
[398168741,1765414245308,-150.0,0.00039547,7]
[398168742,1765414245318,-150.0,0.00039551,7]
[398168743,1765414245327,-150.0,0.00039555,7]
[398168744,1765414245337,-150.0,0.00039575,7]
[398168745,1765414245346,-1600.0,0.00039582,120]
[398168746,1765414245357,-150.0,0.00039614,7]
[398168747,1765414245365,-150.0,0.0003964,7]
[398168748,1765414245374,-150.0,0.000397,7]
[398168749,1765414245383,-150.0,0.000397,7]
[398168750,1765414245394,-150.0,0.000397,7]
[398168751,1765414245403,-150.0,0.000397,7]
[398168752,1765414245412,-150.0,0.000397,7]
[398168753,1765414245421,-150.0,0.00039729,7]
[398168754,1765414245431,-1000.0,0.00039761,14]
[398168755,1765414245440,-150.0,0.00039762,7]
[398168756,1765414245449,-150.0,0.00039772,7]
[398168757,1765414245459,-150.0,0.00039785,7]
[398168758,1765414245468,-173.0,0.000398,120]
[398168759,1765414245477,-150.0,0.00039819,7]
[398168760,1765414245487,-270.63745609,0.00039826,15]
[398168761,1765414245497,-150.0,0.00039852,7]
[398168762,1765414245506,-150.0,0.00039871,7]
[398168763,1765414245515,-3156.38833521,0.00039877,4]
[398168764,1765414245524,-4698.14804389,0.00039886,2]
[398168765,1765414245534,-300.0,0.0003989,30]
[398168766,1765414245543,-150.0,0.00039908,7]
[398168767,1765414245552,-150.0,0.00039948,7]